Workbook

Sheet Registro
A1: TITULO | B1: ESTUDIO DE IMPACTO AMBIENTAL: PROCEDIMIENTO Y HERRAMIENTAS
A3: AUTORES | B3: ROBERTO PECHE GONZALEZ
B4: DOLORES ENCINAS MALAGON
B5: ZURIÑE GOMEZ DE BALUGERA LOPEZ DE ALDA
B6: MARIA ARRITOKIETA ORTUZAR IRAGORRI
A8: ISBN: | B8: 978-84-613-9696-2

Sheet 297
A1: nº de indicador: | B1: 297 | C1: función de transformación: | D1: CA=1,6E-01*I^2 | E1: 0<I<2,5
A2: Indicador: | B2: Grado de adecuación del equipamiento deportivo, de esparcimiento y recreo | D2: CA=-1,6E-01*I^2+8E-01*I | E2: 2,5<I<5
A3: fórmula del indicador
A4: unidad del indicador:
A5: rango de valores del indicador: | B5: 0 - 5 | C5: valor del indicador | D5: 2.8
A6: Tipo de indicador | B6: 3 (T=0,50) | C6: calidad ambiental | D6: =IF(D5<0,"valor del indicador fuera de rango",IF(D5<=2.5,0.16*(D5^2),IF(D5<=5,(-0.16*(D5^2))+(0.8*D5),"valor del indicador fuera rango"))) -> 0.986
A7: valor del indicador | B7: calidad ambiental | C7: representación de la función de transformación
A8: 0.0 | B8: =0.16*A8^2 -> 0.000
A9: =+A8+0.3 -> 0.3 | B9: 0.014
A10: 0.6 | B10: 0.058
A11: 0.9 | B11: 0.130
A12: 1.2 | B12: 0.230
A13: 1.5 | B13: 0.360
A14: 1.8 | B14: 0.518
A15: 2.1 | B15: 0.706
A16: 2.4 | B16: 0.922
A17: 2.5 | B17: =-0.16*A17^2+0.8*A17 -> 1.000
A18: =+A17+0.3 -> 2.8 | B18: 0.986
A19: 3.1 | B19: 0.942
A20: 3.4 | B20: 0.870
A21: 3.7 | B21: 0.770
A22: 4.0 | B22: 0.640
A23: 4.3 | B23: 0.482
A24: 4.6 | B24: 0.294
A25: 5.0 | B25: 0.000

Sheet 298
A1: nº de indicador: | B1: 298 | C1: función de transformación: | D1: CA=1,6E-01*I^2 | E1: 0<I<2,5
A2: Indicador: | B2: Grado de adecuación de los equipamientos turísticos | D2: CA=-1,6E-01*I^2+8E-01*I | E2: 2,5<I<5
A3: fórmula del indicador
A4: unidad del indicador:
A5: rango de valores del indicador: | B5: 0 - 5 | C5: valor del indicador | D5: 2.8
A6: Tipo de indicador | B6: 3 (T=0,50) | C6: calidad ambiental | D6: =IF(D5<0,"valor del indicador fuera de rango",IF(D5<=2.5,0.16*(D5^2),IF(D5<=5,(-0.16*(D5^2))+(0.8*D5),"valor del indicador fuera rango"))) -> 0.986
A7: valor del indicador | B7: calidad ambiental | C7: representación de la función de transformación
A8: 0.0 | B8: =0.16*A8^2 -> 0.000
A9: =+A8+0.3 -> 0.3 | B9: 0.014
A10: 0.6 | B10: 0.058
A11: 0.9 | B11: 0.130
A12: 1.2 | B12: 0.230
A13: 1.5 | B13: 0.360
A14: 1.8 | B14: 0.518
A15: 2.1 | B15: 0.706
A16: 2.4 | B16: 0.922
A17: 2.5 | B17: =-0.16*A17^2+0.8*A17 -> 1.000
A18: =+A17+0.3 -> 2.8 | B18: 0.986
A19: 3.1 | B19: 0.942
A20: 3.4 | B20: 0.870
A21: 3.7 | B21: 0.770
A22: 4.0 | B22: 0.640
A23: 4.3 | B23: 0.482
A24: 4.6 | B24: 0.294
A25: 5.0 | B25: 0.000

Sheet 299
A1: nº de indicador: | B1: 299 | C1: función de transformación: | D1: CA=1,6E-01*I^2 | E1: 0<I<2,5
A2: Indicador: | B2: Grado de adecuación de los servicios oficiales | D2: CA=-1,6E-01*I^2+8E-01*I | E2: 2,5<I<5
A3: fórmula del indicador
A4: unidad del indicador:
A5: rango de valores del indicador: | B5: 0 - 5 | C5: valor del indicador | D5: 2.8
A6: Tipo de indicador | B6: 3 (T=0,50) | C6: calidad ambiental | D6: =IF(D5<0,"valor del indicador fuera de rango",IF(D5<=2.5,0.16*(D5^2),IF(D5<=5,(-0.16*(D5^2))+(0.8*D5),"valor del indicador fuera rango"))) -> 0.986
A7: valor del indicador | B7: calidad ambiental | C7: representación de la función de transformación
A8: 0.0 | B8: =0.16*A8^2 -> 0.000
A9: =+A8+0.3 -> 0.3 | B9: 0.014
A10: 0.6 | B10: 0.058
A11: 0.9 | B11: 0.130
A12: 1.2 | B12: 0.230
A13: 1.5 | B13: 0.360
A14: 1.8 | B14: 0.518
A15: 2.1 | B15: 0.706
A16: 2.4 | B16: 0.922
A17: 2.5 | B17: =-0.16*A17^2+0.8*A17 -> 1.000
A18: =+A17+0.3 -> 2.8 | B18: 0.986
A19: 3.1 | B19: 0.942
A20: 3.4 | B20: 0.870
A21: 3.7 | B21: 0.770
A22: 4.0 | B22: 0.640
A23: 4.3 | B23: 0.482
A24: 4.6 | B24: 0.294
A25: 5.0 | B25: 0.000

Sheet 300-301
A1: nº de indicador: | B1: 300 | C1: función de transformación: | D1: CA=5E-05I^2 | E1: 0<I<100
A2: Indicador: | B2: % de viajes en transporte público en relación a la situación sin proyecto | D2: CA=5E-03I | E2: 100<I<200
A3: fórmula del indicador
A4: unidad del indicador:
A5: rango de valores del indicador: | B5: 0 - 200 | C5: valor del indicador | D5: 70
A6: Tipo de indicador | B6: 2 (T=0,25) | C6: calidad ambiental | D6: =IF(D5<0,"valor del indicador fuera de rango",IF(D5<=100,0.00005*(D5^2),IF(D5<=200,(0.005*D5)))) -> 0.245
A7: valor del indicador | B7: calidad ambiental | C7: representación de la función de transformación
A8: 0 | B8: =0.00005*A8^2 -> 0.000
A9: 20 | B9: 0.020
A10: 40 | B10: 0.080
A11: =+A10+10 -> 50 | B11: 0.125
A12: 60 | B12: 0.180
A13: 70 | B13: 0.245
A14: 80 | B14: 0.320
A15: 90 | B15: 0.405
A16: 100 | B16: 0.500
A17: 120 | B17: =0.005*A17 -> 0.600
A18: 130 | B18: 0.650
A19: 140 | B19: 0.700
A20: =+A19+10 -> 150 | B20: 0.750
A21: 160 | B21: 0.800
A22: 170 | B22: 0.850
A23: 180 | B23: 0.900
A24: 190 | B24: 0.950
A25: 200 | B25: 1.000
A28: nº de indicador: | B28: 301 | C28: función de transformación: | D28: CA=2E-02*I^2+2E-01I+5E-01 | E28: (-5)<I<0
A29: Indicador: | B29: Variación de la relación transporte privado/transporte público | D29: CA=-2E-02*I^2+2E-01*I+5E-01 | E29: 0<I<5
A30: fórmula del indicador
A31: unidad del indicador:
A32: rango de valores del indicador: | B32: -5 - 5 | C32: valor del indicador | D32: 0.6
A33: Tipo de indicador | B33: 2 (T=0,25) | C33: calidad ambiental | D33: =IF(D32<-5,"valor del indicador fuera de rango",IF(D32<=0,0.02*D32^2+0.2*D32+0.5,IF(D32<=5,-0.02*D32^2+0.2*D32+0.5,"valor del indicador fuera de rango"))) -> 0.613
A34: valor del indicador | B34: calidad ambiental | C34: representación de la función de transformación
A35: -5.0 | B35: =0.02*A35^2+0.2*A35+0.5 -> 0.000
A36: -4.0 | B36: 0.020
A37: -3.0 | B37: 0.080
A38: =+A37+0.5 -> -2.5 | B38: 0.125
A39: -2.0 | B39: 0.180
A40: =+A39+0.5 -> -1.5 | B40: 0.245
A41: -1.0 | B41: 0.320
A42: -0.5 | B42: 0.405
A43: 0.0 | B43: 0.500
A44: 0.5 | B44: =-0.02*A44^2+0.2*A44+0.5 -> 0.595
A45: 1.0 | B45: 0.680
A46: 1.5 | B46: 0.755
A47: 2.0 | B47: 0.820
A48: 2.5 | B48: 0.875
A49: 3.0 | B49: 0.920
A50: 3.5 | B50: 0.955
A51: 4.0 | B51: 0.980
A52: 4.5 | B52: =-0.02*A52^2+0.2*A52+0.5 -> 0.995
A53: =+A52+0.5 -> 5.0 | B53: =-0.02*A53^2+0.2*A53+0.5 -> 1.000

Sheet 302
A1: nº de indicador: | B1: 302 | C1: función de transformación: | D1: CA=1,6E-01*I^2 | E1: 0<I<2,5
A2: Indicador: | B2: Grado de adecuación de las comunicaciones | D2: CA=-1,6E-01*I^2+8E-01*I | E2: 2,5<I<5
A3: fórmula del indicador
A4: unidad del indicador:
A5: rango de valores del indicador: | B5: 0 - 5 | C5: valor del indicador | D5: 2.8
A6: Tipo de indicador | B6: 3 (T=0,50) | C6: calidad ambiental | D6: =IF(D5<0,"valor del indicador fuera de rango",IF(D5<=2.5,0.16*(D5^2),IF(D5<=5,(-0.16*(D5^2))+(0.8*D5),"valor del indicador fuera rango"))) -> 0.986
A7: valor del indicador | B7: calidad ambiental | C7: representación de la función de transformación
A8: 0.0 | B8: =0.16*A8^2 -> 0.000
A9: =+A8+0.3 -> 0.3 | B9: 0.014
A10: 0.6 | B10: 0.058
A11: 0.9 | B11: 0.130
A12: 1.2 | B12: 0.230
A13: 1.5 | B13: 0.360
A14: 1.8 | B14: 0.518
A15: 2.1 | B15: 0.706
A16: 2.4 | B16: 0.922
A17: 2.5 | B17: =-0.16*A17^2+0.8*A17 -> 1.000
A18: =+A17+0.3 -> 2.8 | B18: 0.986
A19: 3.1 | B19: 0.942
A20: 3.4 | B20: 0.870
A21: 3.7 | B21: 0.770
A22: 4.0 | B22: 0.640
A23: 4.3 | B23: 0.482
A24: 4.6 | B24: 0.294
A25: 5.0 | B25: 0.000

Sheet 303-305
A1: nº de indicador: | B1: 303 | C1: función de transformación: | D1: CA=0 | E1: 0<I<0,75
A2: Indicador: | B2: Relación viviendas disponibles/viviendas demandadas | D2: CA=4*I-3 | E2: 0,75<I<1
A3: fórmula del indicador | D3: CA=-(I^2)+2*I | E3: 1<I<2
A4: unidad del indicador:
A5: rango de valores del indicador: | B5: 0 - 2 | C5: valor del indicador | D5: 1.1
A6: Tipo de indicador | B6: 2 (T=0,25) | C6: calidad ambiental | D6: =IF(D5<0,"valor del indicador fuera de rango",IF(D5<=0.75,0,IF(D5<=1,(D5*4)-3,IF(D5<=2,-(D5^2)+(2*D5))))) -> 0.990
A7: valor del indicador | B7: calidad ambiental | C7: representación de la función de transformación
A8: 0.00 | B8: 0.000
A9: 0.20 | B9: 0.000
A10: 0.40 | B10: 0.000
A11: 0.60 | B11: 0.000
A12: 0.75 | B12: =(4*A12)-3 -> 0.000
A13: 0.80 | B13: 0.200
A14: 0.85 | B14: 0.400
A15: 0.90 | B15: 0.600
A16: 0.95 | B16: 0.800
A17: 1.00 | B17: 1.000
A18: 1.20 | B18: =-(A18^2)+(2*A18) -> 0.960
A19: 1.40 | B19: =-(A19^2)+(2*A19) -> 0.840
A20: 1.60 | B20: =-(A20^2)+(2*A20) -> 0.640
A21: 1.80 | B21: =-(A21^2)+(2*A21) -> 0.360
A22: 2.00 | B22: =-(A22^2)+(2*A22) -> 0.000
A25: nº de indicador: | B25: 304 | C25: función de transformación: | D25: CA=5E-01*I+5E-01 | E25: 0<I<1
A26: Indicador: | B26: Relación entre segundas residencias ofertadas y demandadas | D26: CA=-I^2+2*I | E26: 1<I<2
A27: fórmula del indicador
A28: unidad del indicador:
A29: rango de valores del indicador: | B29: 0 - 2 | C29: valor del indicador | D29: 1.8
A30: Tipo de indicador | B30: 2 (T=0,25) | C30: calidad ambiental | D30: =IF(D29<0,"valor del indicador fuera de rango",IF(D29<=1,0.5*(D29)+0.5,IF(D29<=2,-(D29^2)+2*(D29)))) -> 0.360
A31: valor del indicador | B31: calidad ambiental | C31: representación de la función de transformación
A32: 0.00 | B32: =0.5*A32+0.5 -> 0.500
A33: =+A32+0.15 -> 0.15 | B33: 0.575
A34: =+A33+0.15 -> 0.30 | B34: 0.650
A35: 0.45 | B35: 0.725
A36: 0.60 | B36: 0.800
A37: 0.75 | B37: 0.875
A38: 0.90 | B38: =0.5*A38+0.5 -> 0.950
A39: 1.05 | B39: =-(A39^2)+2*A39 -> 0.998
A40: 1.20 | B40: =-(A40^2)+2*A40 -> 0.960
A41: 1.35 | B41: 0.878
A42: 1.50 | B42: 0.750
A43: 1.65 | B43: 0.578
A44: 1.80 | B44: 0.360
A45: 1.95 | B45: 0.098
A46: 2.00 | B46: 0.000
A49: nº de indicador: | B49: 305 | C49: función de transformación: | D49: CA=5E-01*I+5E-01 | E49: 0<I<1
A50: Indicador: | B50: Relación entre las camas hoteleras disponibles y demandadas | D50: CA=-I^2+2*I | E50: 1<I<2
A51: fórmula del indicador
A52: unidad del indicador:
A53: rango de valores del indicador: | B53: 0 - 2 | C53: valor del indicador | D53: 1.8
A54: Tipo de indicador | B54: 2 (T=0,25) | C54: calidad ambiental | D54: =IF(D53<0,"valor del indicador fuera de rango",IF(D53<=1,0.5*(D53)+0.5,IF(D53<=2,-(D53^2)+2*(D53)))) -> 0.360
A55: valor del indicador | B55: calidad ambiental | C55: representación de la función de transformación
A56: 0.00 | B56: =0.5*A56+0.5 -> 0.500
A57: =+A56+0.15 -> 0.15 | B57: 0.575
A58: =+A57+0.15 -> 0.30 | B58: 0.650
A59: 0.45 | B59: 0.725
A60: 0.60 | B60: 0.800
A61: 0.75 | B61: 0.875
A62: 0.90 | B62: 0.950
A63: 1.05 | B63: =-(A63^2)+2*A63 -> 0.998
A64: 1.20 | B64: =-(A64^2)+2*A64 -> 0.960
A65: 1.35 | B65: 0.878
A66: 1.50 | B66: 0.750
A67: 1.65 | B67: 0.578
A68: 1.80 | B68: 0.360
A69: 1.95 | B69: 0.098
A70: 2.00 | B70: 0.000

Sheet 306
A1: nº de indicador: | B1: 306 | C1: función de transformación: | D1: CA=1,6E-01*I^2 | E1: 0<I<2,5
A2: Indicador: | B2: Grado de adecuación del sistema sanitario | D2: CA=-1,6E-01*I^2+8E-01*I | E2: 2,5<I<5
A3: fórmula del indicador
A4: unidad del indicador:
A5: rango de valores del indicador: | B5: 0 - 5 | C5: valor del indicador | D5: 2.8
A6: Tipo de indicador | B6: 3 (T=0,50) | C6: calidad ambiental | D6: =IF(D5<0,"valor del indicador fuera de rango",IF(D5<=2.5,0.16*(D5^2),IF(D5<=5,(-0.16*(D5^2))+(0.8*D5),"valor del indicador fuera rango"))) -> 0.986
A7: valor del indicador | B7: calidad ambiental | C7: representación de la función de transformación
A8: 0.0 | B8: =0.16*A8^2 -> 0.000
A9: =+A8+0.3 -> 0.3 | B9: 0.014
A10: 0.6 | B10: 0.058
A11: 0.9 | B11: 0.130
A12: 1.2 | B12: 0.230
A13: 1.5 | B13: 0.360
A14: 1.8 | B14: 0.518
A15: 2.1 | B15: 0.706
A16: 2.4 | B16: 0.922
A17: 2.5 | B17: =-0.16*A17^2+0.8*A17 -> 1.000
A18: =+A17+0.3 -> 2.8 | B18: 0.986
A19: 3.1 | B19: 0.942
A20: 3.4 | B20: 0.870
A21: 3.7 | B21: 0.770
A22: 4.0 | B22: 0.640
A23: 4.3 | B23: 0.482
A24: 4.6 | B24: 0.294
A25: 5.0 | B25: 0.000

Sheet 307
A1: nº de indicador: | B1: 307 | C1: función de transformación: | D1: CA=1,6E-01*I^2 | E1: 0<I<2,5
A2: Indicador: | B2: Grado de adecuación de los equipamientos educativos | D2: CA=-1,6E-01*I^2+8E-01*I | E2: 2,5<I<5
A3: fórmula del indicador
A4: unidad del indicador:
A5: rango de valores del indicador: | B5: 0 - 5 | C5: valor del indicador | D5: 2.8
A6: Tipo de indicador | B6: 3 (T=0,50) | C6: calidad ambiental | D6: =IF(D5<0,"valor del indicador fuera de rango",IF(D5<=2.5,0.16*(D5^2),IF(D5<=5,(-0.16*(D5^2))+(0.8*D5),"valor del indicador fuera rango"))) -> 0.986
A7: valor del indicador | B7: calidad ambiental | C7: representación de la función de transformación
A8: 0.0 | B8: =0.16*A8^2 -> 0.000
A9: =+A8+0.3 -> 0.3 | B9: 0.014
A10: 0.6 | B10: 0.058
A11: 0.9 | B11: 0.130
A12: 1.2 | B12: 0.230
A13: 1.5 | B13: 0.360
A14: 1.8 | B14: 0.518
A15: 2.1 | B15: 0.706
A16: 2.4 | B16: 0.922
A17: 2.5 | B17: =-0.16*A17^2+0.8*A17 -> 1.000
A18: =+A17+0.3 -> 2.8 | B18: 0.986
A19: 3.1 | B19: 0.942
A20: 3.4 | B20: 0.870
A21: 3.7 | B21: 0.770
A22: 4.0 | B22: 0.640
A23: 4.3 | B23: 0.482
A24: 4.6 | B24: 0.294
A25: 5.0 | B25: 0.000
